[Event "Titled Tuesday Blitz March 01 Late 2022"]
[White "Debray, Christopher"]
[Black "Vine, Elzbieta"]
[WhiteFideId "630810"]
[BlackFideId "1119320"]
[WhiteElo "2369"]
[BlackElo "1851"]
[Result "1-0"]
[Round "08"]
[TimeControl "180+1"]
[Date "2022.03.02"]
[WhiteClock "0:00:19"]
[BlackClock "0:00:01"]

1. e4 {[%clk 0:03:00]}  c5 {[%clk 0:02:57]} 2. c3 {[%clk 0:03:00]}  Nf6 {[%clk 0:02:49]} 3. e5 {[%clk 0:02:59]}  Nd5 {[%clk 0:02:46]} 4. d4 {[%clk 0:02:59]}  cxd4 {[%clk 0:02:43]} 5. cxd4 {[%clk 0:03:00]}  Nc6 {[%clk 0:02:42]} 6. Bc4 {[%clk 0:02:52]}  e6 {[%clk 0:02:27]} 7. Nf3 {[%clk 0:02:47]}  Bb4+ {[%clk 0:02:24]} 8. Bd2 {[%clk 0:02:35]}  Qa5 {[%clk 0:02:02]} 9. O-O {[%clk 0:02:19]}  O-O {[%clk 0:01:58]} 10. Bd3 {[%clk 0:02:06]}  d6 {[%clk 0:01:40]} 11. Bxh7+ {[%clk 0:02:00]}  Kxh7 {[%clk 0:01:34]} 12. Ng5+ {[%clk 0:01:59]}  Kg6 {[%clk 0:01:14]} 13. Qg4 {[%clk 0:01:42]}  f5 {[%clk 0:01:13]} 14. exf6 {[%clk 0:01:40]}  Nxf6 {[%clk 0:01:05]} 15. Qg3 {[%clk 0:01:26]}  Bxd2 {[%clk 0:00:30]} 16. Nxe6+ {[%clk 0:01:14]}  Kf7 {[%clk 0:00:28]} 17. Nxf8 {[%clk 0:00:42]}  Kxf8 {[%clk 0:00:26]} 18. Qxd6+ {[%clk 0:00:40]}  Kg8 {[%clk 0:00:20]} 19. Na3 {[%clk 0:00:37]}  Bb4 {[%clk 0:00:17]} 20. Qg3 {[%clk 0:00:25]}  Bxa3 {[%clk 0:00:12]} 21. bxa3 {[%clk 0:00:26]}  Nxd4 {[%clk 0:00:10]} 22. Kh1 {[%clk 0:00:24]}  Bd7 {[%clk 0:00:07]} 23. Rfd1 {[%clk 0:00:23]}  Nf5 {[%clk 0:00:01]} 24. Qb3+ {[%clk 0:00:19]} 1-0


[Site "https://www.chess.com"]

[Event "Titled Tuesday Blitz March 01 Late 2022"]
[White "Derraugh, Geordie"]
[Black "Szente Varga, Fruzsina"]
[WhiteFideId "2603950"]
[BlackFideId "712264"]
[WhiteElo "2116"]
[BlackElo "1994"]
[Result "1-0"]
[Round "08"]
[TimeControl "180+1"]
[Date "2022.03.02"]
[WhiteClock "0:00:17"]
[BlackClock "0:00:18"]

1. e4 {[%clk 0:03:00]}  Nf6 {[%clk 0:02:59]} 2. e5 {[%clk 0:03:00]}  Nd5 {[%clk 0:03:00]} 3. c4 {[%clk 0:03:01]}  Nb6 {[%clk 0:03:00]} 4. c5 {[%clk 0:03:01]}  Nd5 {[%clk 0:03:00]} 5. d4 {[%clk 0:03:02]}  d6 {[%clk 0:03:00]} 6. exd6 {[%clk 0:03:01]}  exd6 {[%clk 0:03:00]} 7. cxd6 {[%clk 0:03:01]}  Bxd6 {[%clk 0:03:01]} 8. Nc3 {[%clk 0:03:01]}  Nf4 {[%clk 0:02:55]} 9. Nf3 {[%clk 0:02:58]}  O-O {[%clk 0:02:55]} 10. Be3 {[%clk 0:02:46]}  Re8 {[%clk 0:02:53]} 11. Qd2 {[%clk 0:02:46]}  Nc6 {[%clk 0:02:32]} 12. O-O-O {[%clk 0:02:42]}  Ng6 {[%clk 0:02:32]} 13. h4 {[%clk 0:02:39]}  h5 {[%clk 0:02:27]} 14. Bd3 {[%clk 0:02:38]}  Nf8 {[%clk 0:02:22]} 15. Ng5 {[%clk 0:02:21]}  Nb4 {[%clk 0:02:19]} 16. Bb1 {[%clk 0:02:20]}  c6 {[%clk 0:01:53]} 17. d5 {[%clk 0:01:55]}  cxd5 {[%clk 0:01:29]} 18. Nxd5 {[%clk 0:01:53]}  Nxd5 {[%clk 0:01:14]} 19. Qxd5 {[%clk 0:01:53]}  Qc7+ {[%clk 0:01:14]} 20. Bc2 {[%clk 0:01:44]}  Bf4 {[%clk 0:01:11]} 21. Kb1 {[%clk 0:01:25]}  Bxe3 {[%clk 0:01:09]} 22. fxe3 {[%clk 0:01:24]}  Be6 {[%clk 0:01:08]} 23. Nxe6 {[%clk 0:01:23]}  Rxe6 {[%clk 0:01:08]} 24. Qxh5 {[%clk 0:01:23]}  Rb6 {[%clk 0:01:01]} 25. Bb3 {[%clk 0:01:19]}  a5 {[%clk 0:00:57]} 26. Rhf1 {[%clk 0:01:17]}  Ne6 {[%clk 0:00:48]} 27. Rc1 {[%clk 0:00:55]}  Qe7 {[%clk 0:00:43]} 28. Rc4 {[%clk 0:00:45]}  Rba6 {[%clk 0:00:25]} 29. Rg4 {[%clk 0:00:21]}  a4 {[%clk 0:00:24]} 30. Bc4 {[%clk 0:00:21]}  Rb6 {[%clk 0:00:23]} 31. Qe5 {[%clk 0:00:20]}  Qf8 {[%clk 0:00:17]} 32. h5 {[%clk 0:00:17]}  Re8 {[%clk 0:00:17]} 33. h6 {[%clk 0:00:16]}  g6 {[%clk 0:00:17]} 34. h7+ {[%clk 0:00:16]}  Kxh7 {[%clk 0:00:18]} 35. Rh4+ {[%clk 0:00:16]}  Qh6 {[%clk 0:00:17]} 36. Rxh6+ {[%clk 0:00:16]}  Kxh6 {[%clk 0:00:18]} 37. Rh1# {[%clk 0:00:17]} 1-0


[Site "https://www.chess.com"]

[Event "Titled Tuesday Blitz March 01 Late 2022"]
[White "Dias, Joao Batista"]
[Black "Osmonbekov, Talaibek"]
[WhiteFideId "2108240"]
[BlackFideId "2017253"]
[WhiteElo "1898"]
[BlackElo "2135"]
[Result "0-1"]
[Round "08"]
[TimeControl "180+1"]
[Date "2022.03.02"]
[WhiteClock "0:00:40"]
[BlackClock "0:00:13"]

1. e4 {[%clk 0:03:00]}  c5 {[%clk 0:02:59]} 2. f4 {[%clk 0:02:58]}  a6 {[%clk 0:02:58]} 3. Nf3 {[%clk 0:02:58]}  b5 {[%clk 0:02:58]} 4. d4 {[%clk 0:02:58]}  cxd4 {[%clk 0:02:57]} 5. Qxd4 {[%clk 0:02:57]}  Bb7 {[%clk 0:02:57]} 6. Bd3 {[%clk 0:02:55]}  Nc6 {[%clk 0:02:52]} 7. Qf2 {[%clk 0:02:55]}  d6 {[%clk 0:02:45]} 8. a3 {[%clk 0:02:55]}  Rc8 {[%clk 0:02:44]} 9. Nc3 {[%clk 0:02:54]}  e6 {[%clk 0:02:43]} 10. Be3 {[%clk 0:02:54]}  Nf6 {[%clk 0:02:41]} 11. h3 {[%clk 0:02:52]}  Be7 {[%clk 0:02:39]} 12. O-O {[%clk 0:02:51]}  O-O {[%clk 0:02:35]} 13. Rad1 {[%clk 0:02:50]}  Qc7 {[%clk 0:02:35]} 14. Bb6 {[%clk 0:02:44]}  Qb8 {[%clk 0:02:35]} 15. Be3 {[%clk 0:02:43]}  Qc7 {[%clk 0:02:24]} 16. Bb6 {[%clk 0:02:41]}  Qb8 {[%clk 0:02:24]} 17. Be3 {[%clk 0:02:41]}  Rfe8 {[%clk 0:02:25]} 18. g4 {[%clk 0:02:41]}  d5 {[%clk 0:02:21]} 19. e5 {[%clk 0:02:38]}  Nd7 {[%clk 0:02:13]} 20. Nd4 {[%clk 0:02:38]}  Nxd4 {[%clk 0:02:12]} 21. Bxd4 {[%clk 0:02:38]}  Bc5 {[%clk 0:02:09]} 22. Ne2 {[%clk 0:02:37]}  Bxd4 {[%clk 0:02:00]} 23. Qxd4 {[%clk 0:02:36]}  Qc7 {[%clk 0:01:57]} 24. Rf3 {[%clk 0:02:28]}  Qc5 {[%clk 0:01:57]} 25. Qxc5 {[%clk 0:02:27]}  Nxc5 {[%clk 0:01:58]} 26. Nd4 {[%clk 0:02:18]}  Rc7 {[%clk 0:01:45]} 27. Bf1 {[%clk 0:02:15]}  Ne4 {[%clk 0:01:43]} 28. Re3 {[%clk 0:02:10]}  Bc8 {[%clk 0:01:41]} 29. Bd3 {[%clk 0:02:08]}  Nc5 {[%clk 0:01:40]} 30. Bf1 {[%clk 0:02:07]}  Bd7 {[%clk 0:01:39]} 31. c3 {[%clk 0:02:06]}  Rec8 {[%clk 0:01:38]} 32. Bg2 {[%clk 0:01:55]}  g6 {[%clk 0:01:36]} 33. Kf2 {[%clk 0:01:55]}  Na4 {[%clk 0:01:36]} 34. Rd2 {[%clk 0:01:53]}  Nb6 {[%clk 0:01:35]} 35. Bf1 {[%clk 0:01:52]}  Kf8 {[%clk 0:01:29]} 36. Kg3 {[%clk 0:01:51]}  Ke7 {[%clk 0:01:29]} 37. h4 {[%clk 0:01:52]}  Bc6 {[%clk 0:01:22]} 38. Rh2 {[%clk 0:01:51]}  Bb7 {[%clk 0:01:19]} 39. h5 {[%clk 0:01:51]}  Nc4 {[%clk 0:01:19]} 40. Bxc4 {[%clk 0:01:50]}  dxc4 {[%clk 0:01:18]} 41. hxg6 {[%clk 0:01:50]}  hxg6 {[%clk 0:01:18]} 42. Rh7 {[%clk 0:01:49]}  Bd5 {[%clk 0:01:07]} 43. f5 {[%clk 0:01:49]}  gxf5 {[%clk 0:01:06]} 44. gxf5 {[%clk 0:01:49]}  Rg8+ {[%clk 0:01:05]} 45. Kf4 {[%clk 0:01:48]}  exf5 {[%clk 0:01:03]} 46. Nxf5+ {[%clk 0:01:47]}  Kf8 {[%clk 0:00:59]} 47. Nd6 {[%clk 0:01:43]}  Be6 {[%clk 0:00:54]} 48. Rg3 {[%clk 0:01:40]}  Rd7 {[%clk 0:00:44]} 49. Rxg8+ {[%clk 0:01:28]}  Kxg8 {[%clk 0:00:44]} 50. Rh2 {[%clk 0:01:24]}  f6 {[%clk 0:00:40]} 51. Rg2+ {[%clk 0:01:20]}  Kf8 {[%clk 0:00:35]} 52. Rh2 {[%clk 0:01:18]}  fxe5+ {[%clk 0:00:32]} 53. Kxe5 {[%clk 0:01:17]}  Bg8 {[%clk 0:00:32]} 54. Rf2+ {[%clk 0:01:16]}  Kg7 {[%clk 0:00:31]} 55. Rg2+ {[%clk 0:01:16]}  Kf8 {[%clk 0:00:29]} 56. Rf2+ {[%clk 0:01:15]}  Ke7 {[%clk 0:00:30]} 57. Rg2 {[%clk 0:01:05]}  Rxd6 {[%clk 0:00:23]} 58. Rxg8 {[%clk 0:01:05]}  Rd2 {[%clk 0:00:23]} 59. Ra8 {[%clk 0:01:03]}  Rxb2 {[%clk 0:00:23]} 60. Ra7+ {[%clk 0:01:04]}  Kd8 {[%clk 0:00:19]} 61. Kd6 {[%clk 0:01:03]}  Kc8 {[%clk 0:00:19]} 62. Rxa6 {[%clk 0:01:03]}  Kb7 {[%clk 0:00:18]} 63. Ra5 {[%clk 0:00:59]}  Kb6 {[%clk 0:00:13]} 64. Ra8 {[%clk 0:00:59]}  Rd2+ {[%clk 0:00:12]} 65. Ke5 {[%clk 0:00:58]}  Rd3 {[%clk 0:00:12]} 66. Rb8+ {[%clk 0:00:55]}  Kc6 {[%clk 0:00:12]} 67. Rc8+ {[%clk 0:00:51]}  Kb7 {[%clk 0:00:12]} 68. Rc5 {[%clk 0:00:50]}  Kb6 {[%clk 0:00:13]} 69. Rc8 {[%clk 0:00:47]}  Rxc3 {[%clk 0:00:13]} 70. Kd5 {[%clk 0:00:48]}  Rd3+ {[%clk 0:00:13]} 71. Ke4 {[%clk 0:00:47]}  Rxa3 {[%clk 0:00:14]} 72. Kd4 {[%clk 0:00:47]}  Rd3+ {[%clk 0:00:14]} 73. Ke4 {[%clk 0:00:46]}  Rd7 {[%clk 0:00:14]} 74. Ke5 {[%clk 0:00:43]}  Ka5 {[%clk 0:00:12]} 75. Ke6 {[%clk 0:00:44]}  Rd1 {[%clk 0:00:12]} 76. Ke5 {[%clk 0:00:42]}  Kb4 {[%clk 0:00:12]} 77. Ke4 {[%clk 0:00:42]}  Kb3 {[%clk 0:00:13]} 78. Ke3 {[%clk 0:00:43]}  b4 {[%clk 0:00:12]} 79. Ke2 {[%clk 0:00:44]}  Rd7 {[%clk 0:00:12]} 80. Ke3 {[%clk 0:00:42]}  c3 {[%clk 0:00:13]} 81. Ke2 {[%clk 0:00:41]}  Kb2 {[%clk 0:00:13]} 82. Ke1 {[%clk 0:00:42]}  b3 {[%clk 0:00:13]} 83. Ke2 {[%clk 0:00:40]}  c2 {[%clk 0:00:13]} 0-1


[Site "https://www.chess.com"]

[Event "Titled Tuesday Blitz March 01 Late 2022"]
[White "Domingo Nunez, Alejandro"]
[Black "Corrales Jimenez, Fidel"]
[WhiteFideId "22245561"]
[BlackFideId "3506690"]
[WhiteElo "2215"]
[BlackElo "2541"]
[Result "1-0"]
[Round "08"]
[TimeControl "180+1"]
[Date "2022.03.01"]
[WhiteClock "0:01:03"]
[BlackClock "0:00:14"]

1. Nf3 {[%clk 0:03:00]}  Nf6 {[%clk 0:02:59]} 2. g3 {[%clk 0:03:00]}  g6 {[%clk 0:02:59]} 3. b3 {[%clk 0:03:00]}  Bg7 {[%clk 0:03:00]} 4. Bb2 {[%clk 0:03:01]}  d5 {[%clk 0:03:00]} 5. Bg2 {[%clk 0:03:01]}  O-O {[%clk 0:03:01]} 6. O-O {[%clk 0:03:01]}  b6 {[%clk 0:03:01]} 7. c4 {[%clk 0:03:02]}  Bb7 {[%clk 0:02:54]} 8. Qc2 {[%clk 0:02:51]}  dxc4 {[%clk 0:02:52]} 9. bxc4 {[%clk 0:02:50]}  c5 {[%clk 0:02:52]} 10. d3 {[%clk 0:02:48]}  Nc6 {[%clk 0:02:52]} 11. a3 {[%clk 0:02:48]}  Qc7 {[%clk 0:02:45]} 12. Nc3 {[%clk 0:02:48]}  Rad8 {[%clk 0:02:45]} 13. Rab1 {[%clk 0:02:47]}  h5 {[%clk 0:02:40]} 14. Ba1 {[%clk 0:02:44]}  Qd7 {[%clk 0:02:27]} 15. Rfd1 {[%clk 0:02:43]}  Nd4 {[%clk 0:02:26]} 16. Nxd4 {[%clk 0:02:39]}  Bxg2 {[%clk 0:02:25]} 17. Kxg2 {[%clk 0:02:25]}  cxd4 {[%clk 0:02:25]} 18. Nb5 {[%clk 0:02:25]}  h4 {[%clk 0:02:25]} 19. Nxd4 {[%clk 0:02:20]}  h3+ {[%clk 0:01:48]} 20. Kg1 {[%clk 0:02:20]}  g5 {[%clk 0:01:23]} 21. c5 {[%clk 0:02:04]}  Rc8 {[%clk 0:01:18]} 22. c6 {[%clk 0:02:03]}  Qg4 {[%clk 0:00:58]} 23. f3 {[%clk 0:02:03]}  Qh5 {[%clk 0:00:58]} 24. Nf5 {[%clk 0:02:01]}  Rc7 {[%clk 0:00:56]} 25. Be5 {[%clk 0:01:58]}  g4 {[%clk 0:00:51]} 26. d4 {[%clk 0:01:27]}  Rxc6 {[%clk 0:00:48]} 27. Nxe7+ {[%clk 0:01:27]}  Kh8 {[%clk 0:00:47]} 28. Qxc6 {[%clk 0:01:27]}  Ne8 {[%clk 0:00:29]} 29. Bxg7+ {[%clk 0:01:24]}  Nxg7 {[%clk 0:00:30]} 30. Rbc1 {[%clk 0:01:21]}  Re8 {[%clk 0:00:30]} 31. Qd7 {[%clk 0:01:19]}  gxf3 {[%clk 0:00:28]} 32. exf3 {[%clk 0:01:17]}  Qxf3 {[%clk 0:00:29]} 33. Qxh3+ {[%clk 0:01:17]}  Nh5 {[%clk 0:00:28]} 34. Re1 {[%clk 0:01:12]}  Kh7 {[%clk 0:00:16]} 35. Qf5+ {[%clk 0:01:11]}  Qxf5 {[%clk 0:00:15]} 36. Nxf5 {[%clk 0:01:12]}  Rd8 {[%clk 0:00:16]} 37. Rcd1 {[%clk 0:01:05]}  Kg6 {[%clk 0:00:16]} 38. Ne7+ {[%clk 0:01:05]}  Kg7 {[%clk 0:00:16]} 39. d5 {[%clk 0:01:06]}  Nf6 {[%clk 0:00:16]} 40. d6 {[%clk 0:01:06]}  Rd7 {[%clk 0:00:16]} 41. Nc6 {[%clk 0:01:05]}  Ng4 {[%clk 0:00:14]} 42. h3 {[%clk 0:01:03]}  Nh6 {[%clk 0:00:14]} 43. Ne5 {[%clk 0:01:03]}  Rd8 {[%clk 0:00:14]} 44. d7 {[%clk 0:01:03]} 1-0


[Site "https://www.chess.com"]

[Event "Titled Tuesday Blitz March 01 Late 2022"]
[White "Dourerassou, Jonathan"]
[Black "Chernomordik, Pavel"]
[WhiteFideId "628050"]
[BlackFideId "2804530"]
[WhiteElo "2513"]
[BlackElo "2249"]
[Result "1-0"]
[Round "08"]
[TimeControl "180+1"]
[Date "2022.03.02"]
[WhiteClock "0:00:22"]
[BlackClock "0:00:02"]

1. b3 {[%clk 0:03:00]}  g6 {[%clk 0:03:00]} 2. Bb2 {[%clk 0:03:01]}  Nf6 {[%clk 0:02:59]} 3. e4 {[%clk 0:02:58]}  Bg7 {[%clk 0:02:58]} 4. e5 {[%clk 0:02:58]}  Nd5 {[%clk 0:02:58]} 5. Nf3 {[%clk 0:02:57]}  O-O {[%clk 0:02:53]} 6. c4 {[%clk 0:02:56]}  Nf4 {[%clk 0:02:50]} 7. g3 {[%clk 0:02:53]}  Ne6 {[%clk 0:02:49]} 8. d4 {[%clk 0:02:54]}  d6 {[%clk 0:02:40]} 9. d5 {[%clk 0:02:53]}  Nc5 {[%clk 0:02:37]} 10. Bg2 {[%clk 0:02:51]}  Bg4 {[%clk 0:02:31]} 11. O-O {[%clk 0:02:47]}  dxe5 {[%clk 0:02:27]} 12. Qc2 {[%clk 0:02:41]}  Bf5 {[%clk 0:02:24]} 13. Qd2 {[%clk 0:02:37]}  Nbd7 {[%clk 0:02:20]} 14. Nh4 {[%clk 0:02:31]}  Be4 {[%clk 0:02:14]} 15. f3 {[%clk 0:02:27]}  Bd3 {[%clk 0:02:09]} 16. Re1 {[%clk 0:02:25]}  a5 {[%clk 0:02:08]} 17. Nc3 {[%clk 0:02:22]}  f5 {[%clk 0:02:01]} 18. Nd1 {[%clk 0:02:02]}  e4 {[%clk 0:01:43]} 19. Bxg7 {[%clk 0:02:03]}  Kxg7 {[%clk 0:01:41]} 20. Nf2 {[%clk 0:02:04]}  Nf6 {[%clk 0:01:35]} 21. Qg5 {[%clk 0:01:56]}  Qd7 {[%clk 0:01:28]} 22. Bh3 {[%clk 0:01:55]}  Kh8 {[%clk 0:01:17]} 23. Qh6 {[%clk 0:01:50]}  Rg8 {[%clk 0:01:13]} 24. fxe4 {[%clk 0:01:45]}  Bxe4 {[%clk 0:01:10]} 25. Nxe4 {[%clk 0:01:41]}  Ncxe4 {[%clk 0:01:09]} 26. Nf3 {[%clk 0:01:36]}  Qd6 {[%clk 0:01:07]} 27. Re2 {[%clk 0:01:31]}  Qc5+ {[%clk 0:01:05]} 28. Kg2 {[%clk 0:01:30]}  Raf8 {[%clk 0:00:59]} 29. Rf1 {[%clk 0:01:28]}  Ng4 {[%clk 0:00:55]} 30. Bxg4 {[%clk 0:01:17]}  fxg4 {[%clk 0:00:54]} 31. Ne5 {[%clk 0:01:17]}  Rxf1 {[%clk 0:00:47]} 32. Kxf1 {[%clk 0:01:18]}  Nd6 {[%clk 0:00:40]} 33. Rf2 {[%clk 0:01:18]}  Qd4 {[%clk 0:00:36]} 34. Nf7+ {[%clk 0:00:39]}  Nxf7 {[%clk 0:00:35]} 35. Rxf7 {[%clk 0:00:40]}  Qd1+ {[%clk 0:00:33]} 36. Kg2 {[%clk 0:00:40]}  Qe2+ {[%clk 0:00:32]} 37. Rf2 {[%clk 0:00:38]}  Qe4+ {[%clk 0:00:31]} 38. Kg1 {[%clk 0:00:38]}  Qb1+ {[%clk 0:00:23]} 39. Rf1 {[%clk 0:00:36]}  Qe4 {[%clk 0:00:22]} 40. Qd2 {[%clk 0:00:34]}  Kg7 {[%clk 0:00:20]} 41. Qb2+ {[%clk 0:00:30]}  Kh6 {[%clk 0:00:19]} 42. Qc1+ {[%clk 0:00:28]}  Kg7 {[%clk 0:00:18]} 43. Qc3+ {[%clk 0:00:27]}  Kh6 {[%clk 0:00:17]} 44. Qxa5 {[%clk 0:00:27]}  Qe3+ {[%clk 0:00:16]} 45. Kg2 {[%clk 0:00:25]}  Qe4+ {[%clk 0:00:15]} 46. Kg1 {[%clk 0:00:25]}  Qe3+ {[%clk 0:00:15]} 47. Rf2 {[%clk 0:00:22]}  Rf8 {[%clk 0:00:13]} 48. Qd2 {[%clk 0:00:22]}  Qxd2 {[%clk 0:00:12]} 49. Rxd2 {[%clk 0:00:23]}  Kg5 {[%clk 0:00:11]} 50. Re2 {[%clk 0:00:23]}  Kf6 {[%clk 0:00:08]} 51. Rf2+ {[%clk 0:00:23]}  Kg7 {[%clk 0:00:08]} 52. Rxf8 {[%clk 0:00:23]}  Kxf8 {[%clk 0:00:08]} 53. Kf2 {[%clk 0:00:23]}  Kf7 {[%clk 0:00:09]} 54. Ke3 {[%clk 0:00:23]}  Kf6 {[%clk 0:00:10]} 55. Ke4 {[%clk 0:00:23]}  b6 {[%clk 0:00:06]} 56. a4 {[%clk 0:00:23]}  e6 {[%clk 0:00:05]} 57. b4 {[%clk 0:00:21]}  Ke7 {[%clk 0:00:03]} 58. Ke5 {[%clk 0:00:20]}  exd5 {[%clk 0:00:02]} 59. Kxd5 {[%clk 0:00:21]}  Kd7 {[%clk 0:00:02]} 60. a5 {[%clk 0:00:21]}  c6+ {[%clk 0:00:02]} 61. Ke5 {[%clk 0:00:21]}  bxa5 {[%clk 0:00:02]} 62. bxa5 {[%clk 0:00:22]}  Kc7 {[%clk 0:00:03]} 63. Ke6 {[%clk 0:00:21]}  Kb7 {[%clk 0:00:02]} 64. Kd6 {[%clk 0:00:22]} 1-0


[Site "https://www.chess.com"]

[Event "Titled Tuesday Blitz March 01 Late 2022"]
[White "Dubov, Daniil"]
[Black "Mekhitarian, Krikor Sevag"]
[WhiteFideId "24126055"]
[BlackFideId "2107660"]
[WhiteElo "2791"]
[BlackElo "2598"]
[Result "1-0"]
[Round "08"]
[TimeControl "180+1"]
[Date "2022.03.01"]
[WhiteClock "0:01:32"]
[BlackClock "0:00:17"]

1. d4 {[%clk 0:03:00]}  Nf6 {[%clk 0:02:59]} 2. Nf3 {[%clk 0:03:00]}  g6 {[%clk 0:02:59]} 3. c4 {[%clk 0:03:00]}  Bg7 {[%clk 0:03:00]} 4. Nc3 {[%clk 0:02:59]}  d5 {[%clk 0:03:00]} 5. cxd5 {[%clk 0:02:56]}  Nxd5 {[%clk 0:03:01]} 6. e4 {[%clk 0:02:56]}  Nxc3 {[%clk 0:03:01]} 7. bxc3 {[%clk 0:02:57]}  c5 {[%clk 0:03:02]} 8. Bb5+ {[%clk 0:02:56]}  Bd7 {[%clk 0:03:01]} 9. Rb1 {[%clk 0:02:55]}  O-O {[%clk 0:02:54]} 10. O-O {[%clk 0:02:54]}  Bg4 {[%clk 0:02:29]} 11. Be2 {[%clk 0:02:52]}  Bxf3 {[%clk 0:02:17]} 12. Bxf3 {[%clk 0:02:51]}  cxd4 {[%clk 0:02:17]} 13. cxd4 {[%clk 0:02:50]}  Nc6 {[%clk 0:01:54]} 14. d5 {[%clk 0:02:48]}  Na5 {[%clk 0:01:52]} 15. Bf4 {[%clk 0:02:43]}  Rc8 {[%clk 0:01:49]} 16. e5 {[%clk 0:02:42]}  b6 {[%clk 0:01:47]} 17. d6 {[%clk 0:02:39]}  Nc4 {[%clk 0:01:39]} 18. Re1 {[%clk 0:02:24]}  exd6 {[%clk 0:01:35]} 19. exd6 {[%clk 0:02:25]}  Qd7 {[%clk 0:01:06]} 20. Bg4 {[%clk 0:02:18]}  f5 {[%clk 0:01:01]} 21. Re7 {[%clk 0:02:17]}  Qd8 {[%clk 0:00:54]} 22. Be2 {[%clk 0:02:09]}  Na5 {[%clk 0:00:33]} 23. Qd5+ {[%clk 0:02:04]}  Kh8 {[%clk 0:00:32]} 24. Be5 {[%clk 0:01:58]}  Rg8 {[%clk 0:00:19]} 25. Bxg7+ {[%clk 0:01:32]}  Rxg7 {[%clk 0:00:19]} 26. Qe5 {[%clk 0:01:33]}  Qf8 {[%clk 0:00:17]} 27. d7 {[%clk 0:01:32]} 1-0


[Site "https://www.chess.com"]

[Event "Titled Tuesday Blitz March 01 Late 2022"]
[White "Fishbein, Alexander"]
[Black "Svane, Rasmus"]
[WhiteFideId "2000377"]
[BlackFideId "4657101"]
[WhiteElo "2442"]
[BlackElo "2645"]
[Result "0-1"]
[Round "08"]
[TimeControl "180+1"]
[Date "2022.03.01"]
[WhiteClock "0:00:18"]
[BlackClock "0:01:11"]

1. e4 {[%clk 0:03:00]}  c6 {[%clk 0:02:59]} 2. d4 {[%clk 0:03:00]}  d5 {[%clk 0:03:00]} 3. Nc3 {[%clk 0:02:59]}  dxe4 {[%clk 0:03:01]} 4. Nxe4 {[%clk 0:02:59]}  Nf6 {[%clk 0:03:02]} 5. Qd3 {[%clk 0:02:58]}  Nxe4 {[%clk 0:02:56]} 6. Qxe4 {[%clk 0:02:54]}  Qd5 {[%clk 0:02:57]} 7. Bd3 {[%clk 0:02:52]}  Qxe4+ {[%clk 0:02:56]} 8. Bxe4 {[%clk 0:02:52]}  Nd7 {[%clk 0:02:57]} 9. Nf3 {[%clk 0:02:46]}  Nf6 {[%clk 0:02:58]} 10. Bd3 {[%clk 0:02:45]}  Bg4 {[%clk 0:02:58]} 11. Ne5 {[%clk 0:02:44]}  Bh5 {[%clk 0:02:58]} 12. c3 {[%clk 0:02:40]}  e6 {[%clk 0:02:58]} 13. Bd2 {[%clk 0:02:37]}  Bd6 {[%clk 0:02:57]} 14. Nc4 {[%clk 0:02:35]}  Bc7 {[%clk 0:02:58]} 15. a4 {[%clk 0:02:26]}  Bg6 {[%clk 0:02:57]} 16. Be2 {[%clk 0:02:19]}  a5 {[%clk 0:02:57]} 17. O-O {[%clk 0:02:13]}  O-O {[%clk 0:02:55]} 18. Rfe1 {[%clk 0:02:13]}  Rfd8 {[%clk 0:02:54]} 19. Bf3 {[%clk 0:02:12]}  Nd5 {[%clk 0:02:54]} 20. Ne5 {[%clk 0:02:08]}  Kf8 {[%clk 0:02:49]} 21. g3 {[%clk 0:02:06]}  Bf5 {[%clk 0:02:48]} 22. h4 {[%clk 0:02:02]}  h6 {[%clk 0:02:42]} 23. g4 {[%clk 0:02:01]}  Bh7 {[%clk 0:02:42]} 24. g5 {[%clk 0:02:01]}  hxg5 {[%clk 0:02:41]} 25. hxg5 {[%clk 0:01:59]}  Bf5 {[%clk 0:02:39]} 26. Kg2 {[%clk 0:01:50]}  f6 {[%clk 0:02:39]} 27. gxf6 {[%clk 0:01:45]}  gxf6 {[%clk 0:02:40]} 28. Nc4 {[%clk 0:01:33]}  Kf7 {[%clk 0:02:38]} 29. Rh1 {[%clk 0:01:21]}  Rg8+ {[%clk 0:02:37]} 30. Kf1 {[%clk 0:01:21]}  Bd3+ {[%clk 0:02:21]} 31. Be2 {[%clk 0:01:21]}  Be4 {[%clk 0:02:22]} 32. f3 {[%clk 0:01:15]}  Bf5 {[%clk 0:02:22]} 33. Be1 {[%clk 0:00:55]}  Nf4 {[%clk 0:02:20]} 34. Ne3 {[%clk 0:00:49]}  Bg6 {[%clk 0:02:03]} 35. Ng4 {[%clk 0:00:47]}  Rh8 {[%clk 0:02:01]} 36. Rg1 {[%clk 0:00:42]}  Rh3 {[%clk 0:01:49]} 37. Bd2 {[%clk 0:00:34]}  Rah8 {[%clk 0:01:43]} 38. Bxf4 {[%clk 0:00:31]}  Bxf4 {[%clk 0:01:44]} 39. Rd1 {[%clk 0:00:29]}  Bc2 {[%clk 0:01:38]} 40. Ra1 {[%clk 0:00:24]}  Bf5 {[%clk 0:01:14]} 41. Nf2 {[%clk 0:00:21]}  Rh2 {[%clk 0:01:12]} 42. Ng4 {[%clk 0:00:19]}  Bxg4 {[%clk 0:01:11]} 43. Rxg4 {[%clk 0:00:18]}  Rh1+ {[%clk 0:01:11]} 44. Rg1 {[%clk 0:00:18]}  Be3 {[%clk 0:01:11]} 0-1


[Site "https://www.chess.com"]

[Event "Titled Tuesday Blitz March 01 Late 2022"]
[White "Golubev, Mikhail"]
[Black "Kaasen, Tor Fredrik"]
[WhiteFideId "14100983"]
[BlackFideId "1516647"]
[WhiteElo "2374"]
[BlackElo "2335"]
[Result "0-1"]
[Round "08"]
[TimeControl "180+1"]
[Date "2022.03.01"]
[WhiteClock "0:00:09"]
[BlackClock "0:01:50"]

1. e4 {[%clk 0:03:00]}  e5 {[%clk 0:02:59]} 2. Nf3 {[%clk 0:02:58]}  Nc6 {[%clk 0:02:59]} 3. Bb5 {[%clk 0:02:57]}  a6 {[%clk 0:03:00]} 4. Ba4 {[%clk 0:02:56]}  d6 {[%clk 0:03:00]} 5. O-O {[%clk 0:02:50]}  Bd7 {[%clk 0:03:00]} 6. c3 {[%clk 0:02:38]}  g6 {[%clk 0:03:00]} 7. d4 {[%clk 0:02:36]}  Bg7 {[%clk 0:03:01]} 8. dxe5 {[%clk 0:02:23]}  Nxe5 {[%clk 0:03:00]} 9. Bxd7+ {[%clk 0:02:17]}  Qxd7 {[%clk 0:03:00]} 10. Nxe5 {[%clk 0:02:16]}  dxe5 {[%clk 0:03:00]} 11. Qxd7+ {[%clk 0:02:15]}  Kxd7 {[%clk 0:03:01]} 12. Rd1+ {[%clk 0:02:13]}  Ke6 {[%clk 0:03:01]} 13. Be3 {[%clk 0:02:07]}  Nf6 {[%clk 0:02:51]} 14. f3 {[%clk 0:02:06]}  h5 {[%clk 0:02:42]} 15. Nd2 {[%clk 0:02:00]}  Bh6 {[%clk 0:02:42]} 16. Bf2 {[%clk 0:01:55]}  Rhd8 {[%clk 0:02:39]} 17. Nb3 {[%clk 0:01:51]}  b6 {[%clk 0:02:38]} 18. a4 {[%clk 0:01:51]}  a5 {[%clk 0:02:38]} 19. Kf1 {[%clk 0:01:47]}  Ne8 {[%clk 0:02:33]} 20. Ke2 {[%clk 0:01:45]}  Nd6 {[%clk 0:02:33]} 21. Nd2 {[%clk 0:01:35]}  f5 {[%clk 0:02:33]} 22. b3 {[%clk 0:01:26]}  Rd7 {[%clk 0:02:19]} 23. exf5+ {[%clk 0:01:08]}  gxf5 {[%clk 0:02:18]} 24. Nf1 {[%clk 0:01:06]}  Rg8 {[%clk 0:02:17]} 25. g3 {[%clk 0:01:06]}  f4 {[%clk 0:02:16]} 26. Nd2 {[%clk 0:00:59]}  Rf7 {[%clk 0:02:11]} 27. Ne4 {[%clk 0:00:32]}  fxg3 {[%clk 0:02:01]} 28. hxg3 {[%clk 0:00:27]}  Nxe4 {[%clk 0:01:50]} 29. fxe4 {[%clk 0:00:27]}  Rgf8 {[%clk 0:01:50]} 30. Bg1 {[%clk 0:00:13]}  Rf3 {[%clk 0:01:51]} 31. Rd3 {[%clk 0:00:10]}  Rxd3 {[%clk 0:01:51]} 32. Kxd3 {[%clk 0:00:10]}  Rf3+ {[%clk 0:01:51]} 33. Kc2 {[%clk 0:00:10]}  Rxg3 {[%clk 0:01:51]} 34. Rd1 {[%clk 0:00:09]}  h4 {[%clk 0:01:50]} 0-1


[Site "https://www.chess.com"]